lending/lending_fUSD_20241212
["ID","MTS","AMOUNT","RATE_DAILY","PERIOD"]
[345121302,1734040246865,-300.121306,0.00019798,3]
[345121303,1734040246875,-300.121306,0.00019798,3]
[345121304,1734040246885,-300.121306,0.00019798,3]
[345121305,1734040246895,-300.121306,0.00019798,3]
[345121306,1734040246904,-1486.36968794,0.00019799,5]
[345121307,1734040246917,-139.95623906,0.000198,7]
[345121308,1734040246931,-579.05084668,0.000198,7]
[345121309,1734040246951,-80.99291426,0.000198,7]
[345121310,1734040246961,-298.121306,0.00019898,2]
[345121311,1734040246971,-365.41,0.000199,2]
[345121312,1734040246981,-1600.0,0.000199,7]
[345121313,1734040246991,-768.88,0.00019945,2]
[345121314,1734040247125,-768.88,0.00019945,2]
[345121315,1734040247135,-244.60026554,0.00019945,2]
[345121316,1734040247216,-17.97796049,0.00019945,2]
[345121318,1734040725385,159.46,0.00010137,2]
[345121320,1734041155129,-450.0,0.00013,2]
[345121321,1734041155152,-5.07593864,0.00013599,2]
[345121322,1734041238123,-1283.05489243,0.00013599,2]
[345121323,1734041238145,-500.0,0.00013699,2]
[345121324,1734041238165,-225.5264436,0.00013699,2]
[345121325,1734041238189,-38.71104723,0.00013699,2]
[345121326,1734041248101,-116.87895277,0.00013699,2]
[345121327,1734041248125,-500.0,0.00015,2]
[345121328,1734041248150,-150.0,0.00016615,2]
[345121329,1734041248174,-777.76,0.00016992,2]
[345121330,1734041248196,-550.0,0.00017,2]
[345121331,1734041248221,-1733.34,0.00018084,2]
[345121332,1734041248243,-500.0,0.00018247,2]
[345121333,1734041248267,-1000.0,0.00018413,2]
[345121334,1734041248290,-250.0,0.00018413,2]
[345121335,1734041248312,-69.22268657,0.00018494,2]
[345121336,1734041248350,-3741.55166487,0.00018494,2]
[345121337,1734041253109,-232.173815,0.00013599,2]
[345121338,1734041253146,-3.33468834,0.00013599,2]
[345121339,1734041253169,-695.08799929,0.00018494,2]
[345121348,1734041432695,-514.0692239,0.00018398,2]
[345121349,1734041432711,-488.6810761,0.00018398,2]
[345121350,1734041432720,-555.36,0.00018417,2]
[345121351,1734041432731,-42.4287619,0.00018494,2]
[345121352,1734041432742,-4616.7,0.00018494,2]
[345121353,1734041432754,-14735.00888737,0.00018494,2]
[345121354,1734041432763,-300.121306,0.00018498,2]
[345121355,1734041432772,-299.121306,0.00018498,3]
[345121356,1734041432782,-200.0,0.00018553,2]
[345121357,1734041432791,-319.81,0.00018632,30]
[345121358,1734041432801,-220.9,0.00018738,2]
[345121359,1734041432811,-300.121306,0.00018798,3]
[345121360,1734041432820,-300.121306,0.00018798,2]
[345121361,1734041432829,-506.3,0.000188,2]
[345121362,1734041432838,-768.88,0.000188,2]
[345121363,1734041432847,-860.63,0.0001895,2]
[345121364,1734041432859,-361.72,0.00018986,2]
[345121365,1734041432869,-4521.14336466,0.00019,2]
[345121366,1734041432879,-500.0,0.00019,2]
[345121367,1734041432889,-600.0,0.00019,2]
[345121368,1734041432898,-400.0,0.00019,2]
[345121369,1734041432907,-262.25,0.00019,2]
[345121371,1734041432917,-600.0,0.00019,2]
[345121373,1734041432927,-300.0,0.00019178,2]
[345121375,1734041432937,-300.0,0.00019178,2]
[345121377,1734041432947,-974.91,0.00019178,2]
[345121379,1734041432956,-150.0,0.00019178,2]
[345121380,1734041432965,-300.121306,0.00019198,2]
[345121381,1734041432978,-300.121306,0.00019198,3]
[345121382,1734041432987,-150.21105842,0.000192,2]
[345121383,1734041432997,-777.76,0.00019256,2]
[345121384,1734041433006,-159.81003152,0.00019273,2]
[345121385,1734041433016,-160.01042729,0.00019273,2]
[345121386,1734041433025,-160.0105277,0.00019273,2]
[345121387,1734041433035,-158.49488051,0.00019273,2]
[345121388,1734041433045,-500.0,0.00019273,2]
[345121389,1734041433055,-500.0,0.00019273,2]
[345121390,1734041433065,-500.0,0.00019273,2]
[345121391,1734041433076,-160.01326368,0.00019273,2]
[345121392,1734041433086,-500.0,0.00019273,2]
[345121393,1734041433097,-161.31042688,0.00019273,2]
[345121394,1734041433107,-155.6,0.0001929,2]
[345121395,1734041433116,-69979.77571054,0.000193,3]
[345121396,1734041433128,-2681.65321811,0.000193,3]
[345121397,1734041433170,-318.34678189,0.000193,3]
[345121399,1734041438271,-500.0,0.00019273,2]
[345121400,1734041438281,-15717.21215493,0.000193,3]
[345121401,1734041438290,-20000.0,0.000193,2]
[345121402,1734041438299,-63636.70675817,0.000193,5]
[345121404,1734041438557,-1498.12045,0.000193,5]
[345121411,1734041440471,-3791.906,0.000193,5]
[345121412,1734041440485,-7348.38880283,0.000193,5]
[345121413,1734041440577,-499.081216,0.000193,5]
[345121414,1734041440809,-48560.0,0.000193,5]
[345121449,1734041443377,-255.88994366,0.000193,5]
[345121451,1734041443663,-1852.800005,0.000193,5]
[345121465,1734041446306,-304.32041283,0.000193,5]
[345121466,1734041446317,-281.49920184,0.000193,5]
[345121467,1734041446328,-384999.99999983,0.000193,5]
[345121468,1734041446344,-4078.0719525,0.000193,5]
[345121469,1734041446411,-9885.34431768,0.000193,5]
[345121470,1734041446422,-3543.03224033,0.000193,5]
[345121471,1734041446433,-340.665,0.000193,5]
[345121472,1734041446449,-8972.29585774,0.000193,5]
[345121473,1734041446460,-962.65224502,0.000193,5]
[345121474,1734041446479,-427.48835298,0.000193,5]
[345121475,1734041446498,-19250.00000027,0.000193,5]
[345121476,1734041541392,154.39,0.00013699,2]
[345121477,1734041698214,180.66,0.00010137,2]
[345121479,1734041730327,4037.6489639,0.0001,2]
[345121481,1734042427127,-187.09,0.00014686,2]
[345121482,1734042427150,-3317.07863957,0.00015,2]
[345121483,1734042439123,-1325.20014372,0.00015,2]
[345121484,1734042439145,-1234.58450477,0.000154,2]
[345121485,1734042443093,-352.757553,0.000154,2]
[345121486,1734042443117,-180.66,0.00016813,2]
[345121487,1734042443139,-140.78180125,0.00016925,2]
[345121488,1734042444092,-374.15607751,0.00016925,2]
[345121502,1734042553565,-379.12361092,0.00011899,2]
[345121503,1734042553586,-158.35566489,0.00011899,2]
[345121504,1734042553607,-209.59345143,0.00011899,2]
[345121505,1734042553630,-4702.93806596,0.000119,2]
[345121506,1734042555104,-2732.53025915,0.000119,2]
[345121507,1734042557133,-1394.00732064,0.000119,2]
[345121508,1734042573104,-927.22471507,0.000119,2]
[345121525,1734042631468,-150.0,0.00011899,2]
[345121526,1734042631478,-8450.042442,0.000119,2]
[345121527,1734042631489,-498.92723845,0.000119,2]
[345121528,1734042631502,-4853.45,0.000119,2]
[345121529,1734042631569,-5565.63237143,0.000119,2]
[345121530,1734042631581,-3000.0,0.000119,2]
[345121531,1734042631592,-4446.40001196,0.000119,2]
[345121532,1734042631844,-995.35,0.000119,2]
[345121556,1734042637639,-4790.79363746,0.000119,2]
[345121557,1734042637650,-598.85561781,0.000119,2]
[345121560,1734042637677,-1092.66000002,0.000119,2]
[345121564,1734042637704,-37178.42894295,0.000119,2]
[345121566,1734042637715,-757.93259827,0.000119,2]
[345121755,1734042639530,-25474.82767439,0.000119,2]
[345121757,1734042639542,-3131.24107796,0.000119,2]
[345121759,1734042639553,-1142.67963408,0.000119,2]
[345121762,1734042639568,-1002.597192,0.000119,2]
[345121768,1734042639637,-453.005,0.000119,2]
[345121779,1734042639894,-669.99000012,0.000119,2]
[345121781,1734042639906,-298.846548,0.000119,2]
[345121801,1734042642680,-5993.75363705,0.000119,2]
[345121802,1734042642692,-22860.16694999,0.000119,2]
[345121803,1734042642703,-4275.5011,0.000119,2]
[345121804,1734042642714,-540.34333037,0.000119,2]
[345121805,1734042642790,-743.291199,0.000119,2]
[345121806,1734042642801,-85413.83555018,0.000119,2]
[345121807,1734042642834,-668.25800015,0.000119,2]
[345121808,1734042642845,-98994.24077041,0.000119,2]
[345121810,1734042642893,-47807.56481798,0.000119,2]
[345121812,1734042642904,-13429.16949333,0.000119,2]
[345121822,1734042643892,167.32,0.00010137,2]
[345121827,1734042645479,-4084.8447925,0.000119,2]
[345121828,1734042645491,-48991.51760008,0.000119,2]
[345121829,1734042645581,-578.04999755,0.000119,2]
[345121830,1734042645594,-340028.6239757,0.000119,2]
[345121831,1734042645604,-192.0,0.00012982,2]
[345121832,1734042645613,-150.0,0.00015269,2]
[345121833,1734042645623,-726.48554138,0.0001576,2]
[345121834,1734042645633,-155.01834246,0.0001586,2]
[345121835,1734042645642,-717.84,0.0001596,2]
[345121836,1734042645652,-155.01834246,0.0001658,2]
[345121837,1734042645661,-155.01834246,0.00017299,2]
[345121838,1734042645671,-250.0,0.0001773,2]
[345121839,1734042645681,-183.02136813,0.00017753,2]
[345121840,1734042645691,-866.67,0.00017853,2]
[345121841,1734042645700,-219.24,0.00017897,2]
[345121842,1734042645710,-23900.0,0.00017899,2]
[345121843,1734042645720,-155.61,0.000179,2]
[345121844,1734042645730,-250.0,0.00017995,2]
[345121845,1734042645739,-155.01834246,0.00018019,2]
[345121846,1734042645748,-1336.26,0.00018026,2]
[345121847,1734042645758,-500.0,0.00018039,2]
[345121848,1734042645768,-150.0,0.00018039,2]
[345121849,1734042645778,-194.55,0.00018067,2]
[345121850,1734042645787,-183.02136811,0.00018205,2]
[345121851,1734042645797,-717.84,0.00018224,2]
[345121853,1734042645807,-299.99,0.00018314,4]
[345121854,1734042645817,-300.0,0.00018368,2]
[345121855,1734042645827,-975.22,0.00018384,2]
[345121856,1734042645836,-973.81,0.00018384,2]
[345121857,1734042645846,-975.22,0.000184,2]
[345121858,1734042645856,-156.68,0.00018413,2]
[345121859,1734042645866,-561.49,0.00018418,2]
[345121860,1734042645877,-328.97,0.0001853,30]
[345121861,1734042645887,-183.02136811,0.00018656,2]
[345121862,1734042645896,-301.49,0.00018678,2]
[345121863,1734042645906,-150.0,0.00018678,2]
[345121864,1734042645916,-975.22,0.00018678,2]
[345121865,1734042645925,-300.0,0.00018678,2]
[345121866,1734042645935,-155.01834246,0.00018739,2]
[345121867,1734042645945,-768.65,0.00018741,2]
[345121868,1734042645954,-155.1,0.00018751,2]
[345121869,1734042645963,-155.1,0.00018758,2]
[345121870,1734042645972,-155.1,0.00018764,2]
[345121871,1734042645982,-155.1,0.00018771,2]
[345121872,1734042645991,-155.1,0.00018778,2]
[345121873,1734042646001,-155.1,0.00018784,2]
[345121874,1734042646011,-155.1,0.00018791,2]
[345121875,1734042646020,-155.1,0.00018798,2]
[345121876,1734042646030,-155.1,0.00018804,2]
[345121877,1734042646039,-155.1,0.00018811,2]
[345121878,1734042646048,-155.1,0.00018818,2]
[345121879,1734042646057,-155.1,0.00018824,2]
[345121880,1734042646067,-155.1,0.00018831,2]
[345121881,1734042646077,-155.1,0.00018838,2]
[345121882,1734042646087,-155.1,0.00018844,2]
[345121883,1734042646095,-870.73,0.00018878,2]
[345121884,1734042646105,-395.03,0.0001895,2]
[345121885,1734042646114,-23491.43795651,0.00019,2]
[345121886,1734042646146,-4049.81749829,0.00019,2]
[345121887,1734042646157,-2359.99999838,0.00019,2]
[345121888,1734042646168,-29984.77037574,0.00019,2]
[345121892,1734043555138,-450.0,0.00013,2]
[345121893,1734043555159,-2197.0,0.0001313,2]
[345121894,1734043555180,-1494.19104164,0.0001313,2]
[345121895,1734043627117,-1139.3032897,0.0001303,2]
[345121896,1734043627143,-702.80895836,0.0001313,2]
[345121897,1734043627165,-2197.0,0.0001313,2]
[345121898,1734043627187,-2197.0,0.0001313,2]
[345121899,1734043627209,-154.39,0.00013699,2]
[345121900,1734043627229,-1844.235004,0.00014656,2]
[345121901,1734043627250,-187.08,0.0001473,2]
[345121902,1734043627271,-150.0,0.00014999,2]
[345121903,1734043627292,-154.92649665,0.00015,2]
[345121904,1734043629091,-345.07350335,0.00015,2]
[345121905,1734043629112,-1000.0,0.00015999,2]
[345121906,1734043629133,-767.70821312,0.00016,2]
[345121907,1734043633092,-3866.32650307,0.00016,2]
[345121908,1734043643294,-1754.96423044,0.00016,2]
[345121909,1734043698421,159.46,0.00010137,2]
[345121917,1734043831700,-154.39,0.00013699,2]
[345121918,1734043831710,-300.0,0.00015999,2]
[345121919,1734043831719,-473.8899816,0.00016,2]
[345121920,1734043831731,-5595.91128583,0.00016,2]
[345121921,1734043832176,-508.63080046,0.00016,2]
[345121922,1734043832188,-1663.12480072,0.00016,2]
[345121923,1734043832388,-388.59141856,0.00016,2]
[345121925,1734043832399,-686.42423863,0.00016,2]
[345121927,1734043832411,-1241.92979011,0.00016,2]
[345121964,1734043837960,-25329.49873746,0.00016,2]
[345121965,1734043837970,-2508.55406425,0.00016,2]
[345121966,1734043837979,-646.05,0.00016495,2]
[345121967,1734043837989,-150.0,0.00016767,2]
[345121968,1734043837999,-550.0,0.00017,2]
[345121969,1734043838009,-4691.0,0.00017,2]
[345121970,1734043838019,-812.44,0.00017482,2]
[345121971,1734043838028,-261.32,0.00017651,2]
[345121972,1734043838038,-9.83354274,0.00017664,2]
[345121973,1734043838060,-140.16645726,0.00017664,2]
[345121974,1734043838069,-1000.0,0.0001773,2]
[345121975,1734043838078,-550.0,0.00017856,2]
[345121976,1734043838088,-2884.17989445,0.00017857,2]
[345121977,1734043838099,-958.53030431,0.00017857,2]
[345121978,1734043838118,-17611.94219337,0.00017857,2]
[345121979,1734043838127,-250.0,0.0001787,2]
[345121980,1734043838136,-531.96,0.00017892,2]
[345121981,1734043838146,-434.14,0.00018027,2]
[345121982,1734043838155,-1201.81,0.00018128,2]
[345121983,1734043838164,-488.83,0.00018186,2]
[345121984,1734043838174,-250.0,0.0001819,2]
[345121985,1734043838183,-200.0,0.00018195,2]
[345121986,1734043838192,-169.82,0.00018225,2]
[345121987,1734043838202,-168.97,0.00018231,2]
[345121988,1734043838211,-436.0,0.00018241,2]
[345121989,1734043838220,-436.0,0.00018341,2]
[345121990,1734043838230,-768.51,0.00018341,2]
[345121991,1734043838239,-23900.0,0.00018413,2]
[345121992,1734043838250,-312.52,0.00018414,30]
[345121993,1734043838259,-413.89888905,0.00018635,2]
[345121994,1734043838268,-646.05,0.00018759,2]
[345121996,1734043838278,-187.38528,0.0001881,2]
[345121998,1734043838287,-2500.0,0.000189,2]
[345122000,1734043838296,-500.121307,0.00018948,3]
[345122002,1734043838305,-500.121307,0.00018948,2]
[345122004,1734043838315,-378.61,0.0001895,2]
[345122006,1734043838324,-3897.693308,0.00019,2]
[345122008,1734043838334,-600.0,0.00019,2]
[345122010,1734043838343,-250.0,0.00019,2]
[345122012,1734043838352,-43263.30471706,0.00019,2]
[345122014,1734043838364,-38679.84126905,0.00019,2]
[345122039,1734043839701,-2415.85401389,0.00019,2]
[345122040,1734043839711,-150.0,0.00019036,2]
[345122041,1734043839721,-500.121307,0.00019048,2]
[345122042,1734043839730,-500.121307,0.00019048,3]
[345122043,1734043839740,-1241.0036231,0.000191,2]
[345122044,1734043839751,-1000.0,0.000191,2]
[345122045,1734043839761,-169.82,0.00019124,2]
[345122046,1734043839776,-200.0,0.00019131,2]
[345122047,1734043839786,-500.121307,0.00019148,3]
[345122048,1734043839796,-500.121307,0.00019148,2]
[345122049,1734043839807,-500.121307,0.00019198,3]
[345122050,1734043839816,-500.121307,0.00019198,2]
[345122051,1734043839826,-1209.8055,0.000192,2]
[345122052,1734043839836,-500.0,0.000192,2]
[345122053,1734043839847,-50423.0496,0.000192,2]
[345122054,1734043839857,-160.14369714,0.000192,2]
[345122055,1734043839867,-5000.0,0.000192,2]
[345122056,1734043839877,-157.87833534,0.000192,2]
[345122057,1734043839887,-1946.0,0.000192,2]
[345122058,1734043839896,-1052.0,0.000192,2]
[345122059,1734043839906,-500.121307,0.00019248,2]
[345122060,1734043839916,-500.121307,0.00019248,3]
[345122061,1734043839925,-858.9153,0.00019261,2]
[345122062,1734043839934,-401.67,0.00019261,2]
[345122063,1734043839944,-500.121307,0.00019298,2]
[345122064,1734043839954,-500.121307,0.00019298,3]
[345122065,1734043840104,-26163.725742,0.000193,5]
[345122067,1734043840141,-36068.3629236,0.000193,5]
[345122069,1734043840152,-823.75016092,0.000193,5]
[345122071,1734043840164,-554.75251895,0.000193,5]
[345122074,1734043840210,-505.04761108,0.000193,5]
[345122076,1734043840223,-1117.43604791,0.000193,5]
[345122078,1734043840234,-872.01324794,0.000193,5]
[345122079,1734043840247,-3648.79072217,0.000193,5]
[345122081,1734043840262,-400.84007138,0.000193,5]
[345122082,1734043840274,-359.4099997,0.000193,5]
[345122087,1734043843243,-5182.9930281,0.000193,5]
[345122088,1734043843255,-7100.36569951,0.000193,5]
[345122089,1734043843525,-2801.4025301,0.000193,5]
[345122097,1734043845581,-315.86571388,0.000192,2]
[345122098,1734043845740,-4684.13428612,0.000192,2]
[345122099,1734043845751,-37394.45693996,0.000193,5]
[345122100,1734043845761,-900.0,0.000193,2]
[345122101,1734043845775,-1191.0,0.000193,2]
[345122102,1734043845784,-500.0,0.00019317,2]
[345122103,1734043845794,-1241.00362307,0.00019402,2]
[345122104,1734043845804,-2404.832,0.00019486,2]
[345122105,1734043845814,-500.121307,0.00019498,3]
[345122106,1734043845823,-500.121307,0.00019498,2]
[345122107,1734043845832,-660.33053688,0.00019501,2]
[345122108,1734043845866,-58.06926414,0.00019501,2]
[345122115,1734044586823,162.59,0.00010137,2]
[345122116,1734044747139,-450.0,0.00013,2]
[345122117,1734044747160,-154.39,0.00013699,2]
[345122118,1734044747183,-219.31981247,0.00015,2]
[345122119,1734044836101,-162.55692772,0.00015,2]
[345122120,1734044839098,-118.12325981,0.00015,2]
[345122121,1734044839121,-689.69,0.0001649,2]
[345122122,1734044839145,-162.59,0.00016813,2]
[345122123,1734044839167,-150.0,0.00016864,2]
[345122124,1734044839189,-757.83298999,0.000169,2]
[345122125,1734044839211,-3379.7515974,0.00017,2]
[345122126,1734044841088,-420.24940623,0.00017,2]
[345122127,1734044845160,-421.99899637,0.00017,2]
[345122128,1734044845181,-550.0,0.00017,2]
[345122129,1734044845203,-1743.28876348,0.00018,2]
[345122130,1734044853091,-3754.05627015,0.00018,2]
[345122131,1734044854101,-391.65496637,0.00018,2]
[345122132,1734044854123,-200.0,0.00018112,2]
[345122133,1734044854149,-104.34909088,0.00018379,2]
[345122139,1734045032091,-250.0,0.00018298,2]
[345122140,1734045032101,-500.0,0.00018356,2]
[345122141,1734045032114,-273.37090912,0.00018379,2]
[345122142,1734045032124,-61.64722986,0.00018383,2]
[345122143,1734045032136,-1902.03277014,0.00018383,2]
[345122144,1734045032145,-140.89863126,0.00018413,2]
[345122145,1734045032158,-24.72136874,0.00018413,2]
[345122146,1734045032167,-250.0,0.00018413,2]
[345122147,1734045032176,-76.14765986,0.00018424,2]
[345122148,1734045032189,-324.63234014,0.00018424,2]
[345122149,1734045032198,-780.05,0.00018489,2]
[345122150,1734045032208,-902.91765986,0.00018492,2]
[345122151,1734045032219,-97.08234014,0.00018492,2]
[345122152,1734045032230,-377.322,0.0001852,2]
[345122153,1734045032239,-300.0,0.00018554,2]
[345122154,1734045032379,-365.04565982,0.00018555,2]
[345122155,1734045032403,-10313.67434018,0.00018555,2]
[345122156,1734045032412,-1001.5,0.00018568,2]
[345122157,1734045032421,-300.121307,0.00018598,2]
[345122158,1734045032431,-300.121307,0.00018598,3]
[345122159,1734045032440,-300.121307,0.00018698,3]
[345122160,1734045032449,-300.121307,0.00018698,2]
[345122161,1734045032459,-689.69,0.00018754,2]
[345122162,1734045032469,-300.121307,0.00018798,2]
[345122163,1734045032482,-300.121307,0.00018798,3]
[345122165,1734045032492,-831.56240036,0.000188,3]
[345122167,1734045032502,-321.79,0.00018889,30]
[345122169,1734045032511,-300.121307,0.00018898,3]
[345122171,1734045032521,-300.121307,0.00018898,2]
[345122173,1734045032530,-150.0,0.00018899,2]
[345122176,1734045032539,-33300.0405,0.000189,2]
[345122178,1734045032548,-152.1628,0.000189,2]
[345122180,1734045032557,-5443.2858,0.000189,2]
[345122183,1734045032567,-4019.0,0.000189,2]
[345122186,1734045032576,-2125.36,0.0001899,2]
[345122189,1734045032585,-300.121307,0.00018998,2]
[345122193,1734045032595,-299.121307,0.00018998,3]
[345122196,1734045032604,-600.0,0.00019,2]
[345122199,1734045032614,-200.0,0.00019001,3]
[345122202,1734045032623,-831.56240036,0.000191,3]
[345122205,1734045032632,-6769.928,0.00019121,2]
[345122207,1734045032642,-1266.7947,0.00019121,2]
[345122209,1734045032651,-264.5917,0.00019121,2]
[345122211,1734045032660,-2576.5567,0.00019121,2]
[345122213,1734045032670,-300.121307,0.00019198,3]
[345122215,1734045032679,-300.121307,0.00019198,2]
[345122217,1734045032688,-178.181,0.000192,2]
[345122219,1734045032698,-300.121307,0.00019298,2]
[345122221,1734045032707,-300.121307,0.00019298,3]
[345122222,1734045032717,-156.1544,0.0001931,2]
[345122223,1734045032727,-165.62,0.00019321,2]
[345122224,1734045032736,-300.121307,0.00019398,3]
[345122225,1734045032746,-300.121307,0.00019398,2]
[345122226,1734045032755,-310.4247,0.00019461,2]
[345122227,1734045032765,-150.0,0.00019482,2]
[345122228,1734045032774,-300.121307,0.00019498,2]
[345122229,1734045032784,-300.121307,0.00019498,3]
[345122230,1734045032793,-900.0,0.00019561,2]
[345122231,1734045032803,-2400.0,0.00019561,2]
[345122232,1734045032813,-156.84763886,0.00019599,2]
[345122233,1734045032822,-1441.63558472,0.000196,5]
[345122234,1734045032832,-34480.42025315,0.00019602,2]
[345122235,1734045032843,-150.0,0.00019645,2]
[345122236,1734045032852,-150.0,0.00019645,2]
[345122237,1734045032862,-150.0,0.00019649,2]
[345122238,1734045032871,-150.0,0.00019653,2]
[345122239,1734045032880,-150.0,0.00019653,2]
[345122240,1734045032890,-150.0,0.00019653,2]
[345122241,1734045032900,-1500.0,0.00019658,2]
[345122242,1734045032909,-150.0,0.00019666,2]
[345122243,1734045032919,-150.0,0.00019666,2]
[345122244,1734045032929,-150.0,0.00019668,2]
[345122245,1734045032939,-150.0,0.00019672,2]
[345122246,1734045032948,-1500.0,0.00019675,2]
[345122247,1734045032960,-150.0,0.00019677,2]
[345122248,1734045032969,-1500.0,0.00019677,2]
[345122249,1734045032979,-150.0,0.00019679,2]
[345122250,1734045032988,-1500.0,0.0001968,2]
[345122251,1734045032998,-1500.0,0.00019683,2]
[345122252,1734045033007,-150.0,0.00019685,2]
[345122253,1734045033017,-150.0,0.00019685,2]
[345122254,1734045033026,-150.0,0.00019685,2]
[345122255,1734045033035,-150.0,0.00019691,2]
[345122256,1734045033045,-150.0,0.00019691,2]
[345122257,1734045033055,-1500.0,0.00019692,2]
[345122258,1734045033064,-150.0,0.00019693,2]
[345122259,1734045033074,-150.0,0.00019694,2]
[345122260,1734045033084,-25588.6412,0.00019699,2]
[345122261,1734045033094,-150.0,0.00019699,2]
[345122262,1734045033103,-150.0,0.00019699,2]
[345122263,1734045033117,-150.0,0.000197,2]
[345122264,1734045033127,-5000.0,0.000197,2]
[345122265,1734045033137,-600.0,0.000197,7]
[345122266,1734045033148,-1500.0,0.00019703,2]
[345122267,1734045033158,-1500.0,0.00019704,2]
[345122268,1734045033167,-1500.0,0.00019705,2]
[345122269,1734045033177,-150.0,0.00019709,2]
[345122270,1734045033189,-150.0,0.00019716,2]
[345122271,1734045033199,-150.0,0.00019717,2]
[345122272,1734045033209,-150.0,0.00019719,2]
[345122273,1734045033219,-150.0,0.00019721,2]
[345122274,1734045033234,-1500.0,0.00019725,2]
[345122275,1734045033245,-1500.0,0.00019725,2]
[345122276,1734045033255,-150.0,0.00019726,2]
[345122277,1734045033265,-150.0,0.00019727,2]
[345122278,1734045033275,-494.36792585,0.00019728,2]
[345122279,1734045033286,-150.0,0.00019729,2]
[345122280,1734045033297,-1500.0,0.00019729,2]
[345122281,1734045033307,-150.0,0.0001973,2]
[345122282,1734045033317,-150.0,0.00019733,2]
[345122283,1734045033327,-1500.0,0.00019736,2]
[345122284,1734045033337,-150.0,0.00019738,2]
[345122285,1734045033347,-150.0,0.00019738,2]
[345122286,1734045033357,-150.0,0.00019739,2]
[345122287,1734045033367,-150.0,0.00019742,2]
[345122288,1734045033377,-500.0,0.00019746,2]
[345122289,1734045033386,-207.04356193,0.00019746,2]
[345122290,1734045033396,-500.0,0.00019746,2]
[345122291,1734045033406,-500.0,0.00019746,2]
[345122292,1734045033416,-232.24860933,0.00019746,2]
[345122293,1734045033426,-500.0,0.00019746,2]
[345122294,1734045033437,-2601.6078,0.00019747,2]
[345122295,1734045033447,-150.0,0.0001975,2]
[345122296,1734045033457,-1500.0,0.00019751,2]
[345122297,1734045033467,-150.0,0.00019752,2]
[345122298,1734045033481,-150.0,0.00019752,2]
[345122299,1734045033492,-150.0,0.00019754,2]
[345122300,1734045033502,-150.0,0.0001976,2]
[345122301,1734045033513,-150.0,0.0001976,2]
[345122302,1734045033522,-150.0,0.00019761,2]
[345122303,1734045033532,-150.0,0.00019764,2]
[345122304,1734045033542,-150.0,0.00019766,2]
[345122305,1734045033552,-150.0,0.00019768,2]
[345122306,1734045033561,-150.0,0.00019768,2]
[345122307,1734045033571,-150.0,0.00019771,2]
[345122308,1734045033580,-150.0,0.00019771,2]
[345122309,1734045033591,-150.0,0.00019775,2]
[345122310,1734045033601,-150.0,0.00019779,2]
[345122311,1734045033610,-1500.0,0.00019781,2]
[345122312,1734045033620,-150.0,0.00019782,2]
[345122313,1734045033630,-500.0,0.00019785,2]
[345122314,1734045033640,-150.0,0.00019787,2]
[345122315,1734045033650,-1500.0,0.00019788,2]
[345122316,1734045033659,-1644.0,0.00019789,2]
[345122317,1734045033669,-1500.0,0.0001979,2]
[345122318,1734045033679,-150.0,0.00019793,2]
[345122319,1734045033689,-150.0,0.00019796,2]
[345122320,1734045033699,-500.121307,0.00019798,2]
[345122321,1734045033709,-500.121307,0.00019798,3]